lending/lending_fUSD_20241214
["ID","MTS","AMOUNT","RATE_DAILY","PERIOD"]
[345349620,1734171040761,-500.0,0.00021249,3]
[345349621,1734171040771,-500.0,0.00021249,3]
[345349622,1734171040779,-500.0,0.00021249,3]
[345349623,1734171040790,-500.0,0.00021249,3]
[345349624,1734171040799,-538.64,0.00021249,3]
[345349625,1734171040808,-500.0,0.00021249,3]
[345349626,1734171040817,-500.0,0.00021249,3]
[345349627,1734171040827,-500.0,0.00021249,3]
[345349628,1734171040835,-500.0,0.00021249,3]
[345349629,1734171040845,-500.0,0.00021249,3]
[345349630,1734171040854,-500.0,0.00021249,3]
[345349631,1734171040863,-500.0,0.00021249,3]
[345349632,1734171040872,-500.0,0.00021249,3]
[345349633,1734171040884,-500.0,0.00021249,3]
[345349634,1734171040893,-500.0,0.00021249,3]
[345349635,1734171040903,-500.0,0.00021249,3]
[345349636,1734171040912,-500.0,0.00021249,3]
[345349637,1734171040922,-500.0,0.00021249,3]
[345349638,1734171040932,-500.0,0.00021249,3]
[345349639,1734171040942,-500.0,0.00021249,3]
[345349640,1734171040952,-500.0,0.00021249,3]
[345349641,1734171040961,-640.6,0.00021249,3]
[345349642,1734171040970,-500.0,0.00021249,3]
[345349643,1734171040979,-500.0,0.00021249,3]
[345349644,1734171040989,-500.0,0.00021249,3]
[345349645,1734171040998,-500.0,0.00021249,3]
[345349646,1734171041007,-500.0,0.00021249,3]
[345349647,1734171041017,-500.0,0.00021249,3]
[345349648,1734171041027,-500.0,0.00021249,3]
[345349649,1734171041037,-598.2,0.00021249,3]
[345349650,1734171041048,-500.0,0.00021249,3]
[345349651,1734171041057,-500.0,0.00021249,3]
[345349652,1734171041066,-500.0,0.00021249,3]
[345349653,1734171041076,-500.0,0.00021249,3]
[345349654,1734171041086,-311.96217667,0.00021249,3]
[345349655,1734171041095,-207.26210091,0.00021249,3]
[345349656,1734171041105,-500.0,0.00021249,3]
[345349657,1734171041115,-500.0,0.00021249,3]
[345349658,1734171041124,-501.85,0.00021249,3]
[345349659,1734171041133,-500.0,0.00021249,3]
[345349660,1734171041143,-500.0,0.00021249,3]
[345349661,1734171041152,-500.0,0.00021249,3]
[345349662,1734171041162,-500.0,0.00021249,3]
[345349663,1734171041172,-500.0,0.00021249,3]
[345349664,1734171041181,-500.0,0.00021249,3]
[345349665,1734171041191,-500.0,0.00021249,3]
[345349666,1734171041200,-500.0,0.00021249,3]
[345349667,1734171041209,-500.0,0.00021249,3]
[345349668,1734171041219,-500.0,0.00021249,3]
[345349669,1734171041228,-500.0,0.00021249,3]
[345349670,1734171041237,-500.0,0.00021249,3]
[345349671,1734171041247,-500.0,0.00021249,3]
[345349672,1734171041256,-500.0,0.00021249,3]
[345349673,1734171041265,-559.91,0.00021249,3]
[345349674,1734171041274,-500.0,0.00021249,3]
[345349675,1734171041283,-500.0,0.00021249,3]
[345349676,1734171041295,-500.0,0.00021249,3]
[345349677,1734171041304,-500.0,0.00021249,3]
[345349678,1734171041314,-500.0,0.00021249,3]
[345349679,1734171041323,-500.0,0.00021249,3]
[345349680,1734171041333,-500.0,0.00021249,3]
[345349681,1734171041342,-500.0,0.00021249,3]
[345349682,1734171041352,-500.0,0.00021249,3]
[345349683,1734171041361,-500.0,0.00021249,3]
[345349684,1734171041371,-500.0,0.00021249,3]
[345349685,1734171041380,-500.0,0.00021249,3]
[345349686,1734171041390,-500.0,0.00021249,3]
[345349687,1734171041399,-500.0,0.00021249,3]
[345349688,1734171041409,-500.0,0.00021249,3]
[345349689,1734171041418,-500.0,0.00021249,3]
[345349690,1734171041428,-500.0,0.00021249,3]
[345349691,1734171041438,-500.0,0.00021249,3]
[345349692,1734171041448,-381.2,0.00021249,3]
[345349693,1734171041457,-500.0,0.00021249,3]
[345349694,1734171041466,-500.0,0.00021249,3]
[345349695,1734171041475,-500.0,0.00021249,3]
[345349696,1734171041484,-510.68,0.00021249,3]
[345349697,1734171041494,-500.0,0.00021249,3]
[345349698,1734171041503,-500.0,0.00021249,3]
[345349699,1734171041512,-500.0,0.00021249,3]
[345349700,1734171041521,-179.48,0.00021249,3]
[345349701,1734171041531,-500.0,0.00021249,3]
[345349702,1734171041542,-500.0,0.00021249,3]
[345349703,1734171041551,-500.0,0.00021249,3]
[345349704,1734171041560,-500.0,0.00021249,3]
[345349705,1734171041570,-333.57,0.00021249,3]
[345349706,1734171041579,-500.0,0.00021249,3]
[345349707,1734171041588,-500.0,0.00021249,3]
[345349708,1734171041598,-635.66,0.00021249,3]
[345349709,1734171041607,-500.0,0.00021249,3]
[345349710,1734171041616,-500.0,0.00021249,3]
[345349711,1734171041625,-500.0,0.00021249,3]
[345349712,1734171041635,-500.0,0.00021249,3]
[345349713,1734171041644,-500.0,0.00021249,3]
[345349714,1734171041653,-500.0,0.00021249,3]
[345349715,1734171041662,-500.0,0.00021249,3]
[345349716,1734171041671,-224.4,0.00021249,3]
[345349717,1734171041680,-500.0,0.00021249,3]
[345349718,1734171041689,-500.0,0.00021249,3]
[345349719,1734171041699,-500.0,0.00021249,3]
[345349720,1734171041708,-500.0,0.00021249,3]
[345349721,1734171041717,-500.0,0.00021249,3]
[345349722,1734171041726,-500.0,0.00021249,3]
[345349723,1734171041736,-556.98,0.00021249,3]
[345349724,1734171041745,-500.0,0.00021249,3]
[345349725,1734171041754,-500.0,0.00021249,3]
[345349726,1734171041763,-500.0,0.00021249,3]
[345349727,1734171041772,-500.0,0.00021249,3]
[345349728,1734171041781,-500.0,0.00021249,3]
[345349729,1734171041795,-500.0,0.00021249,3]
[345349730,1734171041804,-500.0,0.00021249,3]
[345349731,1734171041819,-500.0,0.00021249,3]
[345349732,1734171041828,-500.0,0.00021249,3]
[345349733,1734171041837,-500.0,0.00021249,3]
[345349734,1734171041846,-500.0,0.00021249,3]
[345349735,1734171041855,-500.0,0.00021249,3]
[345349736,1734171041864,-999.0,0.00021249,2]
[345349737,1734171041873,-500.0,0.00021249,3]
[345349738,1734171041885,-500.0,0.00021249,3]
[345349739,1734171041894,-500.0,0.00021249,3]
[345349740,1734171041903,-500.0,0.00021249,3]
[345349741,1734171041912,-500.0,0.00021249,3]
[345349742,1734171041922,-500.0,0.00021249,3]
[345349743,1734171041931,-500.0,0.00021249,3]
[345349744,1734171041940,-500.0,0.00021249,3]
[345349745,1734171041951,-500.0,0.00021249,3]
[345349746,1734171041960,-500.0,0.00021249,3]
[345349747,1734171041969,-500.0,0.00021249,3]
[345349748,1734171041979,-500.0,0.00021249,3]
[345349749,1734171041988,-500.0,0.00021249,3]
[345349750,1734171041997,-500.0,0.00021249,3]
[345349751,1734171042006,-500.0,0.00021249,3]
[345349752,1734171042016,-500.0,0.00021249,3]
[345349753,1734171042025,-500.0,0.00021249,3]
[345349754,1734171042035,-500.0,0.00021249,3]
[345349755,1734171042047,-500.0,0.00021249,3]
[345349756,1734171042055,-500.0,0.00021249,3]
[345349757,1734171042065,-500.0,0.00021249,3]
[345349758,1734171042074,-500.0,0.00021249,3]
[345349759,1734171042083,-230.37,0.00021249,3]
[345349760,1734171042092,-500.0,0.00021249,3]
[345349761,1734171042101,-500.0,0.00021249,3]
[345349762,1734171042110,-500.0,0.00021249,3]
[345349763,1734171042119,-500.0,0.00021249,3]
[345349764,1734171042128,-500.0,0.00021249,3]
[345349765,1734171042137,-500.0,0.00021249,3]
[345349766,1734171042252,-500.0,0.00021249,3]
[345349767,1734171042261,-500.0,0.00021249,3]
[345349768,1734171042271,-500.0,0.00021249,3]
[345349769,1734171042281,-500.0,0.00021249,3]
[345349770,1734171042293,-500.0,0.00021249,3]
[345349771,1734171042302,-172.85,0.00021249,3]
[345349772,1734171042312,-514.03719516,0.00021249,3]
[345349773,1734171042321,-500.0,0.00021249,3]
[345349774,1734171042330,-500.0,0.00021249,3]
[345349775,1734171042339,-500.0,0.00021249,3]
[345349776,1734171042349,-500.0,0.00021249,3]
[345349777,1734171042359,-500.0,0.00021249,3]
[345349778,1734171042368,-500.0,0.00021249,3]
[345349779,1734171042377,-500.0,0.00021249,3]
[345349780,1734171042386,-500.0,0.00021249,3]
[345349781,1734171042395,-464.29756618,0.00021249,3]
[345349782,1734171042404,-500.0,0.00021249,3]
[345349783,1734171042413,-500.0,0.00021249,3]
[345349784,1734171042423,-500.0,0.00021249,3]
[345349785,1734171042433,-500.0,0.00021249,3]
[345349786,1734171042442,-500.0,0.00021249,3]
[345349787,1734171042451,-500.0,0.00021249,3]
[345349788,1734171042460,-500.0,0.00021249,3]
[345349789,1734171042469,-500.0,0.00021249,3]
[345349790,1734171042478,-500.0,0.00021249,3]
[345349791,1734171042487,-500.0,0.00021249,3]
[345349792,1734171042495,-500.0,0.00021249,3]
[345349793,1734171042504,-500.0,0.00021249,3]
[345349794,1734171042514,-500.0,0.00021249,3]
[345349795,1734171042522,-500.0,0.00021249,3]
[345349796,1734171042531,-500.0,0.00021249,3]
[345349797,1734171042545,-500.0,0.00021249,3]
[345349798,1734171042554,-500.0,0.00021249,3]
[345349799,1734171042563,-500.0,0.00021249,3]
[345349800,1734171042572,-500.0,0.00021249,3]
[345349801,1734171042582,-500.0,0.00021249,3]
[345349802,1734171042591,-500.0,0.00021249,3]
[345349803,1734171042600,-500.0,0.00021249,3]
[345349804,1734171042609,-500.0,0.00021249,3]
[345349805,1734171042618,-500.0,0.00021249,3]
[345349806,1734171042627,-500.0,0.00021249,3]
[345349807,1734171042636,-500.0,0.00021249,3]
[345349808,1734171042645,-500.0,0.00021249,3]
[345349809,1734171042655,-500.0,0.00021249,3]
[345349810,1734171042663,-342.74,0.00021249,3]
[345349811,1734171042672,-500.0,0.00021249,3]
[345349812,1734171042681,-500.0,0.00021249,3]
[345349813,1734171042692,-500.0,0.00021249,3]
[345349814,1734171042702,-500.0,0.00021249,3]
[345349815,1734171042711,-500.0,0.00021249,3]
[345349816,1734171042721,-500.0,0.00021249,3]
[345349817,1734171042730,-500.0,0.00021249,3]
[345349818,1734171042739,-500.0,0.00021249,3]
[345349819,1734171042748,-500.0,0.00021249,3]
[345349820,1734171042757,-500.0,0.00021249,3]
[345349821,1734171042766,-500.0,0.00021249,3]
[345349822,1734171042775,-492.772239,0.00021249,3]
[345349823,1734171042783,-500.0,0.00021249,3]
[345349824,1734171042796,-500.0,0.00021249,3]
[345349825,1734171042805,-500.0,0.00021249,3]
[345349826,1734171042814,-500.0,0.00021249,3]
[345349827,1734171042823,-500.0,0.00021249,3]
[345349828,1734171042833,-500.0,0.00021249,3]
[345349829,1734171042842,-338.56,0.00021249,3]
[345349830,1734171042852,-500.0,0.00021249,3]
[345349831,1734171042861,-500.0,0.00021249,3]
[345349832,1734171042870,-500.0,0.00021249,3]
[345349833,1734171042882,-500.0,0.00021249,3]
[345349834,1734171042891,-272.55668371,0.00021249,3]
[345349835,1734171042899,-500.0,0.00021249,3]
[345349836,1734171042908,-500.0,0.00021249,3]
[345349837,1734171042919,-500.0,0.00021249,3]
[345349838,1734171042928,-447.72,0.00021249,3]
[345349839,1734171042937,-500.0,0.00021249,3]
[345349840,1734171042946,-500.0,0.00021249,3]
[345349841,1734171042956,-500.0,0.00021249,3]
[345349842,1734171042966,-500.0,0.00021249,3]
[345349843,1734171042975,-500.0,0.00021249,3]
[345349844,1734171042984,-500.0,0.00021249,3]
[345349845,1734171042994,-500.0,0.00021249,3]
[345349846,1734171043003,-424.74,0.00021249,3]
[345349847,1734171043013,-500.0,0.00021249,3]
[345349848,1734171043022,-500.0,0.00021249,3]
[345349849,1734171043032,-500.0,0.00021249,3]
[345349850,1734171043043,-500.0,0.00021249,3]
[345349851,1734171043053,-500.0,0.00021249,3]
[345349853,1734171043062,-500.0,0.00021249,3]
[345349855,1734171043071,-500.0,0.00021249,3]
[345349856,1734171043080,-500.0,0.00021249,3]
[345349857,1734171043089,-500.0,0.00021249,3]
[345349858,1734171043099,-500.0,0.00021249,3]
[345349859,1734171043107,-500.0,0.00021249,3]
[345349860,1734171043117,-500.0,0.00021249,3]
[345349861,1734171043125,-500.0,0.00021249,3]
[345349862,1734171043135,-576.1,0.00021249,3]
[345349863,1734171043144,-500.0,0.00021249,3]
[345349864,1734171043153,-500.0,0.00021249,3]
[345349866,1734171043162,-500.0,0.00021249,3]
[345349867,1734171043171,-500.0,0.00021249,3]
[345349869,1734171043181,-571.42,0.00021249,3]
[345349870,1734171043190,-500.0,0.00021249,3]
[345349871,1734171043199,-500.0,0.00021249,3]
[345349872,1734171043208,-588.2,0.00021249,3]
[345349873,1734171043217,-500.0,0.00021249,3]
[345349874,1734171043227,-500.0,0.00021249,3]
[345349875,1734171043236,-200.65492439,0.00021249,3]
[345349876,1734171043246,-500.0,0.00021249,3]
[345349877,1734171043255,-500.0,0.00021249,3]
[345349878,1734171043263,-500.0,0.00021249,3]
[345349879,1734171043272,-500.0,0.00021249,3]
[345349880,1734171043281,-389.11819751,0.00021249,3]
[345349881,1734171043292,-500.0,0.00021249,3]
[345349882,1734171043302,-503.79,0.00021249,3]
[345349883,1734171043312,-500.0,0.00021249,3]
[345349884,1734171043322,-500.0,0.00021249,3]
[345349885,1734171043331,-500.0,0.00021249,3]
[345349886,1734171043340,-500.0,0.00021249,3]
[345349887,1734171043350,-630.34,0.00021249,3]
[345349888,1734171043360,-500.0,0.00021249,3]
[345349889,1734171043369,-547.44507561,0.00021249,3]
[345349890,1734171043378,-500.0,0.00021249,3]
[345349891,1734171043387,-500.0,0.00021249,3]
[345349892,1734171043395,-500.0,0.00021249,3]
[345349893,1734171043404,-500.0,0.00021249,3]
[345349894,1734171043414,-500.0,0.00021249,3]
[345349895,1734171043423,-202.1,0.00021249,3]
[345349896,1734171043433,-500.0,0.00021249,3]
[345349897,1734171043443,-500.0,0.00021249,3]
[345349898,1734171043452,-500.0,0.00021249,3]
[345349899,1734171043461,-500.0,0.00021249,3]
[345349900,1734171043472,-500.0,0.00021249,3]
[345349901,1734171043482,-500.0,0.00021249,3]
[345349902,1734171043492,-450.29372627,0.00021249,3]
[345349903,1734171043502,-500.0,0.00021249,3]
[345349904,1734171043511,-557.7,0.00021249,3]
[345349905,1734171043520,-500.0,0.00021249,3]
[345349906,1734171043529,-500.0,0.00021249,3]
[345349907,1734171043541,-500.0,0.00021249,3]
[345349908,1734171043550,-500.0,0.00021249,3]
[345349909,1734171043560,-500.0,0.00021249,3]
[345349910,1734171043570,-500.0,0.00021249,3]
[345349911,1734171043578,-262.7,0.00021249,3]
[345349912,1734171043587,-500.0,0.00021249,3]
[345349913,1734171043596,-500.0,0.00021249,3]
[345349914,1734171043605,-500.0,0.00021249,3]
[345349915,1734171043614,-500.0,0.00021249,3]
[345349916,1734171043623,-500.0,0.00021249,3]
[345349917,1734171043632,-500.0,0.00021249,3]
[345349918,1734171043641,-500.0,0.00021249,3]
[345349919,1734171043651,-500.0,0.00021249,3]
[345349920,1734171043660,-500.0,0.00021249,3]
[345349921,1734171043669,-230.82,0.00021249,3]
[345349922,1734171043678,-500.0,0.00021249,3]
[345349923,1734171043687,-500.0,0.00021249,3]
[345349924,1734171043696,-500.0,0.00021249,3]
[345349925,1734171043705,-500.0,0.00021249,3]
[345349926,1734171043715,-500.0,0.00021249,3]
[345349927,1734171043723,-500.0,0.00021249,3]
[345349928,1734171043733,-500.0,0.00021249,3]
[345349929,1734171043741,-500.0,0.00021249,3]
[345349930,1734171043750,-500.0,0.00021249,3]
[345349931,1734171043759,-500.0,0.00021249,3]
[345349932,1734171043768,-500.0,0.00021249,3]
[345349933,1734171043778,-500.0,0.00021249,3]
[345349934,1734171043787,-500.0,0.00021249,3]
[345349935,1734171043799,-500.0,0.00021249,3]
[345349936,1734171043808,-500.0,0.00021249,3]
[345349937,1734171043817,-500.0,0.00021249,3]
[345349938,1734171043826,-500.0,0.00021249,3]
[345349939,1734171043836,-500.0,0.00021249,3]
[345349940,1734171043845,-500.0,0.00021249,3]
[345349941,1734171043854,-500.0,0.00021249,3]
[345349942,1734171043863,-500.0,0.00021249,3]
[345349943,1734171043873,-500.0,0.00021249,3]
[345349944,1734171043886,-500.0,0.00021249,3]
[345349945,1734171043895,-500.0,0.00021249,3]
[345349946,1734171043904,-306.99278418,0.00021249,3]
[345349947,1734171043913,-500.0,0.00021249,3]
[345349948,1734171043925,-500.0,0.00021249,3]
[345349949,1734171043934,-500.0,0.00021249,3]
[345349950,1734171043943,-500.0,0.00021249,3]
[345349951,1734171043953,-333.68,0.00021249,3]
[345349952,1734171043962,-500.0,0.00021249,3]
[345349953,1734171043972,-500.0,0.00021249,3]
[345349954,1734171043981,-500.0,0.00021249,3]
[345349955,1734171043990,-500.0,0.00021249,3]
[345349956,1734171044000,-207.97164642,0.00021249,3]
[345349957,1734171044009,-500.0,0.00021249,3]
[345349958,1734171044018,-500.0,0.00021249,3]
[345349959,1734171044027,-500.0,0.00021249,3]
[345349960,1734171044037,-500.0,0.00021249,3]
[345349961,1734171044048,-500.0,0.00021249,3]
[345349962,1734171044057,-500.0,0.00021249,3]
[345349963,1734171044066,-500.0,0.00021249,3]
[345349964,1734171044076,-500.0,0.00021249,3]
[345349965,1734171044085,-528.25,0.00021249,3]
[345349966,1734171044094,-500.0,0.00021249,3]
[345349967,1734171044103,-605.01,0.00021249,3]
[345349968,1734171044113,-500.0,0.00021249,3]
[345349969,1734171044122,-500.0,0.00021249,3]
[345349970,1734171044131,-500.0,0.00021249,3]
[345349971,1734171044140,-500.0,0.00021249,3]
[345349972,1734171044150,-500.0,0.00021249,3]
[345349973,1734171044159,-500.0,0.00021249,3]
[345349974,1734171044168,-500.0,0.00021249,3]
[345349975,1734171044178,-500.0,0.00021249,3]
[345349976,1734171044187,-500.0,0.00021249,3]
[345349977,1734171044197,-500.0,0.00021249,3]
[345349978,1734171044206,-500.0,0.00021249,3]
[345349979,1734171044215,-500.0,0.00021249,3]
[345349980,1734171044225,-351.56,0.00021249,3]
[345349981,1734171044234,-500.0,0.00021249,3]
[345349982,1734171044243,-500.0,0.00021249,3]
[345349983,1734171044252,-500.0,0.00021249,3]
[345349984,1734171044260,-500.0,0.00021249,3]
[345349985,1734171044269,-384.84,0.00021249,3]
[345349986,1734171044278,-502.20522625,0.00021249,3]
[345349987,1734171044287,-500.0,0.00021249,3]
[345349988,1734171044298,-500.0,0.00021249,3]
[345349989,1734171044307,-234.63,0.00021249,3]
[345349990,1734171044316,-500.0,0.00021249,3]
[345349991,1734171044326,-578.72,0.00021249,3]
[345349992,1734171044336,-500.0,0.00021249,3]
[345349993,1734171044346,-500.0,0.00021249,3]
[345349994,1734171044355,-500.0,0.00021249,3]
[345349995,1734171044364,-500.0,0.00021249,3]
[345349996,1734171044374,-585.33100649,0.00021249,3]
[345349997,1734171044384,-500.0,0.00021249,3]
[345349998,1734171044394,-500.0,0.00021249,3]
[345349999,1734171044405,-500.0,0.00021249,3]
[345350000,1734171044415,-500.0,0.00021249,3]
[345350001,1734171044425,-500.0,0.00021249,3]
[345350002,1734171044434,-500.0,0.00021249,3]
[345350003,1734171044444,-500.0,0.00021249,3]
[345350004,1734171044453,-500.0,0.00021249,3]
[345350005,1734171044462,-609.80643876,0.00021249,3]
[345350006,1734171044471,-586.48,0.00021249,3]
[345350007,1734171044481,-500.0,0.00021249,3]
[345350008,1734171044490,-500.0,0.00021249,3]
[345350009,1734171044499,-1000.0,0.0002125,4]
[345350010,1734171044510,-1000.0,0.0002125,10]
[345350011,1734171044520,-6283.1812228,0.0002125,2]
[345350012,1734171044529,-160905.03454297,0.0002125,4]
[345350013,1734171044540,-4633.6645752,0.0002125,2]
[345350014,1734171044549,-720.0,0.0002125,2]
[345350015,1734171044558,-1000.0,0.0002125,8]
[345350016,1734171044567,-212807.0,0.0002125,2]
[345350017,1734171044577,-14424558.18562839,0.0002125,2]
[345350018,1734171044844,-9772.6062,0.0002125,2]
[345350019,1734171044856,-627.71978725,0.0002125,2]
[345350020,1734171044866,-3906.47492057,0.0002125,2]
[345350021,1734171044881,-24995.34813619,0.0002125,2]
[345350022,1734171044892,-33017.57440624,0.0002125,2]
[345350023,1734171044903,-34663.16642334,0.0002125,2]
[345350024,1734171044913,-10544.49279954,0.0002125,2]
[345350025,1734171044925,-30377.26587579,0.0002125,2]
[345350026,1734171044936,-11602.73092474,0.0002125,2]
[345350027,1734171044947,-4320.0,0.0002125,2]
[345350028,1734171044959,-1401.2073942,0.0002125,2]
[345350029,1734171045076,-500.0,0.00021249,3]
[345350030,1734171045085,-509.71667059,0.0002125,2]
[345350031,1734171045096,-384.644286,0.0002125,2]
[345350032,1734171045107,-312.3160075,0.0002125,2]
[345350033,1734171045118,-301.92197159,0.0002125,2]
[345350034,1734171045147,-18678.2152651,0.0002125,2]
[345350035,1734171045158,-774.6985844,0.0002125,2]
[345350036,1734171045231,-500.263042,0.000212,2]
[345350037,1734171045240,-500.0,0.00021249,3]
[345350038,1734171045250,-500.0,0.00021249,3]
[345350039,1734171045259,-500.0,0.00021249,3]
[345350040,1734171045268,-477.860825,0.00021249,3]
[345350041,1734171045361,-22.139175,0.00021249,3]
[345350042,1734171045371,-262.30377883,0.0002125,2]
[345350043,1734171045386,-500.0,0.00021249,3]
[345350044,1734171045394,-390201.01694226,0.0002125,2]
[345350045,1734171045544,-269319.40381577,0.0002125,2]
[345350046,1734171045559,-4996.15455264,0.0002125,2]
[345350055,1734171046244,-646.28,0.00021249,3]
[345350057,1734171046254,-693.71658246,0.00021249,2]
[345350059,1734171046265,-306.28341754,0.00021249,2]
[345350061,1734171046275,-289.43480112,0.0002125,2]
[345350067,1734171046357,-195300.43393378,0.0002125,2]
[345350068,1734171046476,-1000.0,0.00021249,2]
[345350069,1734171046486,-41107.37195,0.0002125,2]
[345350070,1734171046591,-7001.3584935,0.0002125,2]
[345350073,1734171092329,500.0,0.00017414,2]
[345350074,1734171092703,500.0,0.00017414,2]
[345350075,1734171127095,415.67271621,0.00019102,2]
[345350076,1734171150119,157.96,0.00010137,2]
[345350079,1734171583625,173.44,0.00015522,2]
[345350081,1734171785499,175.63,0.00015479,2]
[345350083,1734172035139,-500.0,0.00017414,2]
[345350084,1734172035160,-500.0,0.00017414,2]
[345350085,1734172035180,-500.0,0.00017414,2]
[345350086,1734172035204,-751.06,0.00018217,2]
[345350087,1734172035226,-300.0,0.00018899,2]
[345350088,1734172035247,-9524.71617091,0.000189,2]
[345350092,1734172152135,-175.57,0.00016712,2]
[345350093,1734172152156,-713.5,0.00017271,2]
[345350094,1734172152175,-500.0,0.00017414,2]
[345350095,1734172152195,-500.0,0.00017414,2]
[345350096,1734172152213,-15958.3157075,0.000189,2]
[345350097,1734172152233,-16188.35485311,0.0001901,2]
[345350098,1734172152252,-288.11804005,0.00019107,2]
[345350099,1734172152271,-150.48609969,0.0001911,2]
[345350100,1734172152292,-2544.96994674,0.0001911,2]
[345350101,1734172169716,450.0,0.00013,2]
[345350102,1734172170810,500.0,0.00015,2]
[345350104,1734172197622,392.0,0.00010137,2]
[345350105,1734172198018,392.0,0.00016813,2]
[345350107,1734172206228,500.0,0.00017414,2]
[345350108,1734172210374,500.0,0.00017414,2]
[345350130,1734172231577,-1000.0,0.00019178,5]
[345350131,1734172231587,-415.67271621,0.00019211,2]
[345350132,1734172231597,-250.0,0.00019231,2]
[345350133,1734172231607,-224.9,0.00019256,2]
[345350134,1734172231617,-300.0,0.00019326,2]
[345350135,1734172231627,-250.0,0.00019327,2]
[345350136,1734172231637,-1500.0,0.00019327,2]
[345350137,1734172231646,-500.0,0.00019327,2]
[345350138,1734172231655,-300.0,0.00019327,2]
[345350139,1734172231665,-250.0,0.00019342,2]
[345350140,1734172231675,-1976.35,0.00019345,2]
[345350141,1734172231684,-2844.42,0.0001942,2]
[345350142,1734172231694,-2751.0,0.00019422,2]
[345350143,1734172231704,-231.99,0.0001943,2]
[345350144,1734172231714,-768.0,0.0001943,2]
[345350145,1734172231723,-200.0,0.0001943,2]
[345350146,1734172231733,-1000.0,0.00019441,2]
[345350147,1734172231743,-200.0,0.00019441,2]
[345350148,1734172231753,-174.08,0.00019441,2]
[345350149,1734172231763,-512.11,0.00019441,2]
[345350150,1734172231773,-200.0,0.00019441,2]
[345350151,1734172231783,-167.36,0.00019441,2]
[345350152,1734172231792,-737.29,0.00019452,6]
[345350153,1734172231802,-415.67271621,0.00019496,2]
[345350154,1734172231811,-713.5,0.00019535,2]
[345350155,1734172231821,-638.74468655,0.00019606,2]
[345350156,1734172231831,-500.0,0.00019606,2]
[345350157,1734172231842,-155.26,0.00019649,30]
[345350158,1734172231851,-159.86153827,0.00019933,2]
[345350159,1734172231861,-500.0,0.00019933,2]
[345350160,1734172231870,-250.2551811,0.00019933,2]
[345350161,1734172231880,-415.67271621,0.00019958,2]
[345350162,1734172231889,-8737.57618414,0.0002,3]
[345350163,1734172231898,-983.33,0.00020007,2]
[345350164,1734172231908,-2460.78,0.0002006,2]
[345350165,1734172231918,-821.51,0.0002006,2]
[345350168,1734172231928,-821.51,0.00020066,2]
[345350169,1734172231938,-821.51,0.00020071,2]
[345350171,1734172231947,-821.51,0.00020076,2]
[345350173,1734172231956,-821.51,0.00020082,2]
[345350175,1734172231965,-821.51,0.00020087,2]
[345350177,1734172231975,-821.51,0.00020092,2]